fUST/lending_fUST_20240624
["ID","MTS","AMOUNT","RATE_DAILY","PERIOD"]
[330216735,1719174647926,-4334.49,0.00016712,2]
[330216736,1719174647936,-575.16,0.00016712,2]
[330216737,1719174647945,-503.48,0.00016712,2]
[330216738,1719174647955,-500.0,0.00016712,2]
[330216739,1719174647965,-500.0,0.00016712,2]
[330216740,1719174647974,-500.0,0.00016712,2]
[330216741,1719174647985,-18414.85,0.00016712,2]
[330216742,1719174647994,-1341.15,0.00016712,2]
[330216743,1719174648004,-536.38,0.00016712,2]
[330216744,1719174648014,-1898.74,0.00016712,2]
[330216745,1719174648024,-151.0,0.00016712,2]
[330216746,1719174648034,-151.0,0.00016712,2]
[330216747,1719174648043,-151.0,0.00016712,2]
[330216748,1719174648052,-517.56498613,0.00016712,2]
[330216749,1719174648061,-542.19,0.00016712,2]
[330216750,1719174648071,-1079.26,0.00016712,2]
[330216751,1719174648080,-1537.45,0.00016712,2]
[330216752,1719174648090,-500.0,0.00016712,2]
[330216753,1719174648099,-500.0,0.00016712,2]
[330216754,1719174648109,-500.0,0.00016712,2]
[330216755,1719174648120,-6551.28,0.00016712,2]
[330216756,1719174648129,-151.0,0.00016712,2]
[330216757,1719174648138,-151.0,0.00016712,2]
[330216758,1719174648147,-500.0,0.00016712,2]
[330216759,1719174648156,-500.0,0.00016712,2]
[330216760,1719174648165,-2561.56,0.00016712,2]
[330216761,1719174648175,-6517.34,0.00016712,2]
[330216762,1719174648184,-500.0,0.00016712,2]
[330216763,1719174648193,-151.0,0.00016712,2]
[330216764,1719174648201,-151.0,0.00016712,2]
[330216765,1719174648211,-500.0,0.00016712,2]
[330216766,1719174648220,-151.0,0.00016712,2]
[330216767,1719174648230,-151.0,0.00016712,2]
[330216768,1719174648240,-1537.66,0.00016712,2]
[330216769,1719174648249,-500.0,0.00016712,2]
[330216770,1719174648258,-500.0,0.00016712,2]
[330216771,1719174648267,-774.05,0.00016712,2]
[330216772,1719174648276,-250.0,0.00016712,2]
[330216773,1719174648412,-1432.41,0.00016712,2]
[330216774,1719174648422,-500.0,0.00016712,2]
[330216775,1719174648432,-500.0,0.00016712,2]
[330216776,1719174648442,-7412.42,0.00016712,2]
[330216777,1719174648452,-151.0,0.00016712,2]
[330216778,1719174648461,-563.97083849,0.00016712,2]
[330216779,1719174648470,-3610.86,0.00016712,2]
[330216780,1719174648480,-516.53464916,0.00016712,2]
[330216781,1719174648489,-151.0,0.00016712,2]
[330216782,1719174648498,-151.0,0.00016712,2]
[330216783,1719174648507,-151.0,0.00016712,2]
[330216784,1719174648517,-151.0,0.00016712,2]
[330216785,1719174648526,-2246.33,0.00016712,2]
[330216786,1719174648535,-500.0,0.00016712,2]
[330216787,1719174648544,-500.0,0.00016712,2]
[330216788,1719174648553,-32454.08,0.00016712,2]
[330216789,1719174648563,-1376.71,0.00016712,2]
[330216790,1719174648572,-756.33,0.00016712,2]
[330216791,1719174648581,-500.0,0.00016712,2]
[330216792,1719174648591,-500.0,0.00016712,2]
[330216793,1719174648600,-500.0,0.00016712,2]
[330216794,1719174648609,-279.966113,0.00016712,2]
[330216795,1719174648618,-279.966113,0.00016712,2]
[330216796,1719174648627,-279.966113,0.00016712,2]
[330216797,1719174648637,-279.966113,0.00016712,2]
[330216798,1719174648646,-516.86,0.00016712,2]
[330216799,1719174648656,-20245.98,0.00016712,2]
[330216800,1719174648668,-151.0,0.00016718,2]
[330216801,1719174648679,-151.0,0.00016718,2]
[330216802,1719174648688,-625.49946054,0.00016732,2]
[330216803,1719174648697,-195.45518522,0.0001681,2]
[330216804,1719174648706,-361.3,0.00016865,2]
[330216805,1719174648717,-401.59956828,0.00016873,2]
[330216806,1719174648728,-876.0,0.00016901,2]
[330216807,1719174648738,-154.85288975,0.00016985,2]
[330216808,1719174648747,-154.85288975,0.00016985,2]
[330216809,1719174648756,-180.22622487,0.00016986,2]
[330216810,1719174648767,-500.0,0.00016986,2]
[330216811,1719174648776,-500.0,0.00016986,2]
[330216812,1719174648786,-500.0,0.00016986,2]
[330216813,1719174648795,-500.0,0.00016986,2]
[330216814,1719174648805,-477.86714701,0.00016986,2]
[330216815,1719174648814,-500.0,0.00016986,2]
[330216816,1719174648823,-500.0,0.00016986,2]
[330216817,1719174648834,-649.31,0.00016986,2]
[330216818,1719174648843,-409.65753112,0.00016986,2]
[330216819,1719174648853,-500.0,0.00016986,2]
[330216820,1719174648864,-500.0,0.00016986,2]
[330216821,1719174648875,-500.0,0.00016986,2]
[330216822,1719174648886,-500.0,0.00016986,2]
[330216823,1719174648896,-500.0,0.00016986,2]
[330216824,1719174648907,-577.06,0.00016986,2]
[330216825,1719174648917,-500.0,0.00016986,2]
[330216826,1719174648928,-503.00282318,0.00016986,2]
[330216827,1719174648938,-500.0,0.00016986,2]
[330216828,1719174648948,-500.0,0.00016986,2]
[330216829,1719174648959,-500.0,0.00016986,2]
[330216830,1719174648970,-1503.14,0.00016986,2]
[330216831,1719174648980,-500.0,0.00016986,2]
[330216832,1719174648989,-607.12,0.00016986,2]
[330216833,1719174649000,-904.38,0.00016986,2]
[330216834,1719174649010,-500.0,0.00016986,2]
[330216835,1719174649021,-500.0,0.00016986,2]
[330216836,1719174649032,-500.0,0.00016986,2]
[330216837,1719174649043,-500.0,0.00016986,2]
[330216838,1719174649053,-558.69,0.00016986,2]
[330216839,1719174649064,-500.0,0.00016986,2]
[330216840,1719174649074,-980.55,0.00016986,2]
[330216841,1719174649084,-500.0,0.00016986,2]
[330216842,1719174649095,-500.0,0.00016986,2]
[330216843,1719174649105,-500.0,0.00016986,2]
[330216844,1719174649116,-563.01,0.00016986,2]
[330216845,1719174649127,-500.0,0.00016986,2]
[330216846,1719174649138,-1324.56,0.00016986,2]
[330216847,1719174649147,-500.0,0.00016986,2]
[330216848,1719174649158,-500.0,0.00016986,2]
[330216849,1719174649167,-1516.13,0.00016986,2]
[330216850,1719174649176,-500.0,0.00016986,2]
[330216851,1719174649186,-500.0,0.00016986,2]
[330216852,1719174649196,-500.0,0.00016986,2]
[330216853,1719174649206,-500.0,0.00016986,2]
[330216854,1719174649216,-151.0,0.00016986,2]
[330216855,1719174649226,-151.0,0.00016986,2]
[330216856,1719174649235,-151.0,0.00016986,2]
[330216857,1719174649245,-151.0,0.00016986,2]
[330216858,1719174649254,-500.0,0.00016986,2]
[330216859,1719174649264,-500.0,0.00016986,2]
[330216860,1719174649273,-1103.0,0.00016986,2]
[330216861,1719174649283,-500.0,0.00016986,2]
[330216862,1719174649292,-500.0,0.00016986,2]
[330216863,1719174649302,-1475.76,0.00016986,2]
[330216864,1719174649311,-500.0,0.00016986,2]
[330216865,1719174649320,-4066.31,0.00016986,2]
[330216866,1719174649330,-500.0,0.00016986,2]
[330216867,1719174649340,-1762.91,0.00016986,2]
[330216868,1719174649349,-1380.03,0.00016986,2]
[330216869,1719174649359,-405.0648108,0.00016986,2]
[330216870,1719174649368,-1025.32,0.00016986,2]
[330216871,1719174649377,-385.28369223,0.00016986,2]
[330216872,1719174649387,-667.47,0.00016986,2]
[330216873,1719174649397,-500.0,0.00016986,2]
[330216874,1719174649409,-500.0,0.00016986,2]
[330216875,1719174649419,-500.0,0.00016986,2]
[330216876,1719174649430,-500.0,0.00016986,2]
[330216877,1719174649439,-500.0,0.00016986,2]
[330216878,1719174649448,-500.0,0.00016986,2]
[330216879,1719174649457,-500.0,0.00016986,2]
[330216880,1719174649466,-607.17,0.00016986,2]
[330216881,1719174649475,-860.5,0.00016986,2]
[330216882,1719174649484,-500.0,0.00016986,2]
[330216883,1719174649493,-214.06440436,0.00016986,2]
[330216884,1719174649502,-500.0,0.00016986,2]
[330216885,1719174649512,-1793.34,0.00016986,2]
[330216886,1719174649521,-2104.1,0.00016986,2]
[330216887,1719174649531,-247.052392,0.00016986,2]
[330216888,1719174649540,-500.0,0.00016986,2]
[330216889,1719174649549,-714.36,0.00016986,2]
[330216890,1719174649559,-500.0,0.00016986,2]
[330216891,1719174649568,-500.0,0.00016986,2]
[330216892,1719174649577,-598.35,0.00016986,2]
[330216893,1719174649587,-637.49,0.00016986,2]
[330216894,1719174649596,-500.0,0.00016986,2]
[330216895,1719174649606,-151.0,0.00016986,2]
[330216896,1719174649615,-515.07555329,0.00016986,2]
[330216897,1719174649624,-151.0,0.00016986,2]
[330216898,1719174649635,-151.0,0.00016986,2]
[330216899,1719174649644,-605.62,0.00016986,2]
[330216900,1719174649654,-1188.46,0.00016986,2]
[330216901,1719174649663,-500.0,0.00016986,2]
[330216902,1719174649672,-500.0,0.00016986,2]
[330216903,1719174649682,-500.0,0.00016986,2]
[330216904,1719174649691,-973.52,0.00016986,2]
[330216905,1719174649701,-151.0,0.00016986,2]
[330216906,1719174649711,-151.0,0.00016986,2]
[330216907,1719174649722,-151.0,0.00016986,2]
[330216908,1719174649732,-151.0,0.00016986,2]
[330216909,1719174649742,-151.0,0.00016986,2]
[330216910,1719174649753,-151.0,0.00016986,2]
[330216911,1719174649762,-500.0,0.00016986,2]
[330216912,1719174649771,-500.0,0.00016986,2]
[330216913,1719174649780,-1441.99,0.00016986,2]
[330216914,1719174649789,-490.25929685,0.00016986,2]
[330216915,1719174649799,-500.0,0.00016986,2]
[330216916,1719174649809,-500.0,0.00016986,2]
[330216917,1719174649819,-742.42,0.00016986,2]
[330216918,1719174649831,-546.28,0.00016986,2]
[330216919,1719174649841,-500.0,0.00016986,2]
[330216920,1719174649851,-845.58,0.00016986,2]
[330216921,1719174649860,-500.0,0.00016986,2]
[330216922,1719174649871,-500.0,0.00016986,2]
[330216923,1719174649882,-525.22,0.00016986,2]
[330216924,1719174649892,-722.91,0.00016986,2]
[330216925,1719174649902,-500.0,0.00016986,2]
[330216926,1719174649912,-500.0,0.00016986,2]
[330216927,1719174649921,-5605.98,0.00016986,2]
[330216928,1719174649932,-500.0,0.00016986,2]
[330216929,1719174649942,-500.0,0.00016986,2]
[330216930,1719174649952,-1191.24,0.00016986,2]
[330216931,1719174649961,-674.34,0.00016986,2]
[330216932,1719174649971,-1348.97,0.00016986,2]
[330216933,1719174649981,-500.0,0.00016986,2]
[330216934,1719174649990,-500.0,0.00016986,2]
[330216935,1719174650000,-500.0,0.00016986,2]
[330216936,1719174650010,-500.0,0.00016986,2]
[330216937,1719174650020,-500.0,0.00016986,2]
[330216938,1719174650031,-1531.69,0.00016986,2]
[330216939,1719174650041,-555.54,0.00016986,2]
[330216940,1719174650050,-542.18,0.00016986,2]
[330216941,1719174650059,-643.83,0.00016986,2]
[330216942,1719174650068,-500.0,0.00016986,2]
[330216943,1719174650076,-500.0,0.00016986,2]
[330216944,1719174650085,-3174.3,0.00016986,2]
[330216945,1719174650094,-500.0,0.00016986,2]
[330216946,1719174650103,-550.15,0.00016986,2]
[330216947,1719174650113,-1100.27,0.00016986,2]
[330216948,1719174650121,-500.0,0.00016986,2]
[330216949,1719174650130,-500.0,0.00016986,2]
[330216950,1719174650139,-500.0,0.00016986,2]
[330216951,1719174650148,-642.11,0.00016986,2]
[330216952,1719174650157,-151.0,0.00016986,2]
[330216953,1719174650166,-151.0,0.00016986,2]
[330216954,1719174650176,-151.0,0.00016986,2]
[330216955,1719174650185,-1321.57,0.00016986,2]
[330216956,1719174650194,-2315.91,0.00016986,2]
[330216957,1719174650203,-500.0,0.00016986,2]
[330216958,1719174650213,-500.0,0.00016986,2]
[330216959,1719174650222,-1251.46,0.00016986,2]
[330216960,1719174650231,-151.0,0.00016986,2]
[330216961,1719174650240,-6323.22,0.00016986,2]
[330216962,1719174650248,-186.626565,0.00016986,2]
[330216963,1719174650257,-970.94,0.00016986,2]
[330216964,1719174650267,-890.06,0.00016986,2]
[330216965,1719174650277,-500.0,0.00016986,2]
[330216966,1719174650286,-500.0,0.00016986,2]
[330216967,1719174650296,-742.69,0.00016986,2]
[330216968,1719174650306,-500.0,0.00016986,2]
[330216969,1719174650315,-612.61,0.00016986,2]
[330216970,1719174650325,-500.0,0.00016986,2]
[330216971,1719174650334,-6784.43,0.00016986,2]
[330216972,1719174650343,-500.0,0.00016986,2]
[330216973,1719174650352,-957.79,0.00016986,2]
[330216974,1719174650361,-500.0,0.00016986,2]
[330216975,1719174650370,-529.58568314,0.00016986,2]
[330216976,1719174650379,-1199.62,0.00016986,2]
[330216977,1719174650389,-500.0,0.00016986,2]
[330216978,1719174650398,-500.0,0.00016986,2]
[330216979,1719174650412,-500.0,0.00016986,2]
[330216980,1719174650421,-500.0,0.00016986,2]
[330216981,1719174650430,-500.0,0.00016986,2]
[330216982,1719174650438,-500.0,0.00016986,2]
[330216983,1719174650448,-500.0,0.00016986,2]
[330216984,1719174650457,-1117.51,0.00016986,2]
[330216985,1719174650466,-500.0,0.00016986,2]
[330216986,1719174650476,-1238.49,0.00016986,2]
[330216987,1719174650487,-500.0,0.00016986,2]
[330216988,1719174650497,-500.0,0.00016986,2]
[330216989,1719174650507,-2870.31,0.00016986,2]
[330216990,1719174650516,-500.0,0.00016986,2]
[330216991,1719174650525,-616.4,0.00016986,2]
[330216992,1719174650533,-4040.72,0.00016986,2]
[330216993,1719174650543,-500.0,0.00016986,2]
[330216994,1719174650551,-623.39408957,0.00016986,2]
[330216995,1719174650561,-840.74,0.00016986,2]
[330216996,1719174650570,-1873.26,0.00016986,2]
[330216997,1719174650580,-4334.49,0.00016986,2]
[330216998,1719174650589,-575.16,0.00016986,2]
[330216999,1719174650598,-503.48,0.00016986,2]
[330217000,1719174650607,-500.0,0.00016986,2]
[330217001,1719174650617,-513.30311292,0.00016986,2]
[330217002,1719174650626,-500.0,0.00016986,2]
[330217003,1719174650637,-18414.85,0.00016986,2]
[330217004,1719174650647,-1341.15,0.00016986,2]
[330217005,1719174650657,-536.38,0.00016986,2]
[330217006,1719174650666,-1898.74,0.00016986,2]
[330217007,1719174650676,-236.65237,0.00016986,2]
[330217008,1719174650685,-542.19,0.00016986,2]
[330217009,1719174650694,-1079.26,0.00016986,2]
[330217010,1719174650703,-1537.45,0.00016986,2]
[330217011,1719174650714,-500.0,0.00016986,2]
[330217012,1719174650724,-500.0,0.00016986,2]
[330217013,1719174650733,-240.06647338,0.00016986,2]
[330217014,1719174650742,-6551.28,0.00016986,2]
[330217015,1719174650752,-151.0,0.00016986,2]
[330217016,1719174650761,-151.0,0.00016986,2]
[330217017,1719174650771,-151.0,0.00016986,2]
[330217018,1719174650780,-500.0,0.00016986,2]
[330217019,1719174650789,-500.0,0.00016986,2]
[330217020,1719174650799,-2561.56,0.00016986,2]
[330217021,1719174650810,-6517.34,0.00016986,2]
[330217022,1719174650819,-524.7508497,0.00016986,2]
[330217023,1719174650830,-151.0,0.00016986,2]
[330217024,1719174650839,-151.0,0.00016986,2]
[330217025,1719174650849,-151.0,0.00016986,2]
[330217026,1719174650858,-500.0,0.00016986,2]
[330217027,1719174650867,-151.0,0.00016986,2]
[330217028,1719174650878,-151.0,0.00016986,2]
[330217029,1719174650888,-207.90292,0.00016986,2]
[330217030,1719174650898,-1537.66,0.00016986,2]
[330217031,1719174650907,-500.0,0.00016986,2]
[330217032,1719174650918,-500.0,0.00016986,2]
[330217033,1719174650929,-774.05,0.00016986,2]
[330217034,1719174651046,-250.0,0.00016986,2]
[330217035,1719174651055,-500.0,0.00016986,2]
[330217036,1719174651065,-1096.84726042,0.00016986,2]
[330217037,1719174651084,-335.56273958,0.00016986,2]
[330217038,1719174651094,-500.0,0.00016986,2]
[330217039,1719174651103,-7412.42,0.00016986,2]
[330217040,1719174651113,-3610.86,0.00016986,2]
[330217041,1719174651122,-215.946329,0.00016986,2]
[330217042,1719174651131,-2246.33,0.00016986,2]
[330217043,1719174651140,-500.0,0.00016986,2]
[330217044,1719174651150,-500.0,0.00016986,2]
[330217045,1719174651159,-11886.11757643,0.00016986,2]
[330217046,1719174813373,3000.0,0.000225,30]
[330217049,1719175045563,14790.24103725,0.0001,2]
[330217050,1719175080497,16215.99027815,0.0001,2]
[330217054,1719175099265,1326.73841652,0.00012121,2]
[330217055,1719175199994,16215.99027815,0.00012121,2]
[330217056,1719175282997,16215.99027815,0.00012121,2]
[330217057,1719175365776,16215.99027815,0.00012121,2]
[330217058,1719175411669,3000.0,0.000225,30]
[330217135,1719175832263,-300.0,0.00015152,2]
[330217137,1719175832272,-300.0,0.00015152,2]
[330217138,1719175832282,-732.28760033,0.00015153,2]
[330217141,1719175832293,-1390.0,0.00015153,2]
[330217143,1719175832304,-315.71,0.00015153,2]
[330217145,1719175832316,-3792.74837424,0.00015153,2]
[330217212,1719175838044,-284.92258736,0.00015153,2]
[330217213,1719175838057,-3651.58,0.00015153,2]
[330217214,1719175838069,-14732.75143807,0.00015153,2]
[330217215,1719175838079,-523.72799366,0.00015722,2]
[330217216,1719175838090,-158.39906944,0.00015735,2]
[330217217,1719175838099,-888.08083523,0.00015745,2]
[330217218,1719175838110,-490.22115977,0.00015883,2]
[330217219,1719175838120,-158.39906944,0.00015886,2]
[330217220,1719175838130,-154.83742071,0.00015934,2]
[330217221,1719175838140,-723.68394442,0.00015934,2]
[330217222,1719175838150,-723.68394442,0.00015934,2]
[330217223,1719175838161,-154.9977393,0.00016001,2]
[330217224,1719175838174,-175.97073239,0.00016036,2]
[330217225,1719175838184,-158.39906944,0.00016037,2]
[330217226,1719175838194,-158.39906944,0.00016187,2]
[330217227,1719175838203,-158.39906944,0.00016338,2]
[330217228,1719175838213,-401.59956828,0.00016376,2]
[330217229,1719175838223,-500.0,0.00016438,2]
[330217230,1719175838232,-500.0,0.00016438,2]
[330217231,1719175838243,-500.0,0.00016438,2]
[330217232,1719175838253,-500.0,0.00016438,2]
[330217233,1719175838262,-500.0,0.00016438,2]
[330217234,1719175838272,-500.0,0.00016438,2]
[330217235,1719175838281,-857.99,0.00016438,2]
[330217236,1719175838291,-500.0,0.00016438,2]
[330217237,1719175838301,-1158.99,0.00016438,2]
[330217238,1719175838311,-500.0,0.00016438,2]
[330217239,1719175838320,-500.0,0.00016438,2]
[330217240,1719175838330,-500.0,0.00016438,2]
[330217241,1719175838340,-897.16,0.00016438,2]
[330217242,1719175838349,-500.0,0.00016438,2]
[330217243,1719175838359,-584.03,0.00016438,2]
[330217244,1719175838369,-500.0,0.00016438,2]
[330217245,1719175838379,-500.0,0.00016438,2]
[330217246,1719175838388,-519.99534314,0.00016438,2]
[330217247,1719175838401,-654.83,0.00016438,2]
[330217248,1719175838415,-500.0,0.00016438,2]
[330217249,1719175838425,-437.34671598,0.00016438,2]
[330217250,1719175838435,-500.0,0.00016438,2]
[330217251,1719175838446,-584.36,0.00016438,2]
[330217252,1719175838456,-500.0,0.00016438,2]
[330217253,1719175838470,-693.3,0.00016438,2]
[330217254,1719175838481,-500.0,0.00016438,2]
[330217255,1719175838490,-500.0,0.00016438,2]
[330217256,1719175838500,-500.0,0.00016438,2]
[330217257,1719175838510,-500.0,0.00016438,2]
[330217258,1719175838521,-500.76,0.00016438,2]
[330217259,1719175838531,-500.0,0.00016438,2]
[330217260,1719175838540,-500.0,0.00016438,2]
[330217261,1719175838550,-893.29,0.00016438,2]
[330217262,1719175838561,-500.0,0.00016438,2]
[330217263,1719175838571,-500.0,0.00016438,2]
[330217264,1719175838582,-500.0,0.00016438,2]
[330217265,1719175838593,-500.19529123,0.00016438,2]
[330217266,1719175838603,-500.0,0.00016438,2]
[330217267,1719175838613,-500.0,0.00016438,2]
[330217268,1719175838624,-500.0,0.00016438,2]
[330217269,1719175838634,-500.0,0.00016438,2]
[330217270,1719175838644,-1395.52,0.00016438,2]
[330217271,1719175838655,-500.0,0.00016438,2]
[330217272,1719175838670,-500.0,0.00016438,2]
[330217273,1719175838680,-500.0,0.00016438,2]
[330217274,1719175838690,-513.60575091,0.00016438,2]
[330217275,1719175838700,-407.71226481,0.00016438,2]
[330217276,1719175838710,-500.0,0.00016438,2]
[330217277,1719175838720,-279.92,0.00016438,2]
[330217278,1719175838730,-500.0,0.00016438,2]
[330217279,1719175838740,-1011.08,0.00016438,2]
[330217280,1719175838751,-590.18,0.00016438,2]
[330217281,1719175838761,-500.0,0.00016438,2]
[330217282,1719175838770,-500.0,0.00016438,2]
[330217283,1719175838780,-1352.78,0.00016438,2]
[330217284,1719175838790,-500.0,0.00016438,2]
[330217285,1719175838801,-500.0,0.00016438,2]
[330217286,1719175838813,-500.0,0.00016438,2]
[330217287,1719175838822,-1265.03,0.00016438,2]
[330217288,1719175838832,-3727.45,0.00016438,2]
[330217289,1719175838842,-500.0,0.00016438,2]
[330217290,1719175838852,-500.0,0.00016438,2]
[330217291,1719175838862,-500.0,0.00016438,2]
[330217292,1719175838871,-472.60205159,0.00016438,2]
[330217293,1719175838882,-500.0,0.00016438,2]
[330217294,1719175838892,-1616.0,0.00016438,2]
[330217295,1719175838903,-500.0,0.00016438,2]
[330217296,1719175838919,-500.0,0.00016438,2]
[330217297,1719175838929,-500.0,0.00016438,2]
[330217298,1719175838939,-500.0,0.00016438,2]
[330217299,1719175838948,-500.0,0.00016438,2]
[330217300,1719175838958,-500.0,0.00016438,2]
[330217301,1719175838968,-677.87,0.00016438,2]
[330217302,1719175838979,-199.56487531,0.00016438,2]
[330217303,1719175838989,-265.50762221,0.00016438,2]
[330217304,1719175838998,-500.0,0.00016438,2]
[330217305,1719175839008,-500.0,0.00016438,2]
[330217306,1719175839018,-449.73124058,0.00016438,2]
[330217307,1719175839028,-500.0,0.00016438,2]
[330217308,1719175839039,-500.0,0.00016438,2]
[330217309,1719175839049,-500.0,0.00016438,2]
[330217310,1719175839060,-509.21904877,0.00016438,2]
[330217311,1719175839071,-500.0,0.00016438,2]
[330217312,1719175839082,-500.0,0.00016438,2]
[330217313,1719175839092,-500.0,0.00016438,2]
[330217314,1719175839103,-500.0,0.00016438,2]
[330217315,1719175839114,-500.0,0.00016438,2]
[330217316,1719175839124,-500.0,0.00016438,2]
[330217317,1719175839134,-556.57,0.00016438,2]
[330217318,1719175839144,-770.68,0.00016438,2]
[330217319,1719175839154,-788.79,0.00016438,2]
[330217320,1719175839307,-500.0,0.00016438,2]
[330217321,1719175839328,-500.0,0.00016438,2]
[330217322,1719175839349,-500.0,0.00016438,2]
[330217323,1719175839372,-500.0,0.00016438,2]
[330217324,1719175839395,-1643.89,0.00016438,2]
[330217325,1719175839418,-500.0,0.00016438,2]
[330217326,1719175839442,-500.0,0.00016438,2]
[330217327,1719175839452,-1928.75,0.00016438,2]
[330217328,1719175839462,-248.52639496,0.00016438,2]
[330217329,1719175839473,-500.0,0.00016438,2]
[330217330,1719175839483,-500.0,0.00016438,2]
[330217331,1719175839493,-503.23688875,0.00016438,2]
[330217332,1719175839502,-500.0,0.00016438,2]
[330217333,1719175839512,-500.0,0.00016438,2]
[330217334,1719175839521,-500.0,0.00016438,2]
[330217335,1719175839531,-513.51302212,0.00016438,2]
[330217336,1719175839540,-500.0,0.00016438,2]
[330217337,1719175839550,-426.9345968,0.00016438,2]
[330217338,1719175839561,-250.0,0.00016438,2]
[330217339,1719175839571,-500.0,0.00016438,2]
[330217340,1719175839580,-500.0,0.00016438,2]
[330217341,1719175839590,-500.0,0.00016438,2]
[330217342,1719175839600,-500.0,0.00016438,2]
[330217343,1719175839610,-552.06982032,0.00016438,2]
[330217344,1719175839621,-500.0,0.00016438,2]
[330217345,1719175839631,-500.0,0.00016438,2]
[330217346,1719175839641,-500.0,0.00016438,2]
[330217347,1719175839651,-500.0,0.00016438,2]
[330217348,1719175839662,-500.0,0.00016438,2]
[330217349,1719175839672,-697.4,0.00016438,2]
[330217350,1719175839683,-500.0,0.00016438,2]
[330217351,1719175839693,-500.0,0.00016438,2]
[330217352,1719175839703,-500.0,0.00016438,2]
[330217353,1719175839713,-500.0,0.00016438,2]
[330217354,1719175839723,-520.7039951,0.00016438,2]
[330217355,1719175839732,-500.0,0.00016438,2]
[330217356,1719175839742,-500.0,0.00016438,2]
[330217357,1719175839752,-1089.43,0.00016438,2]
[330217358,1719175839762,-500.0,0.00016438,2]
[330217359,1719175839772,-500.0,0.00016438,2]
[330217360,1719175839781,-500.0,0.00016438,2]
[330217361,1719175839791,-500.0,0.00016438,2]
[330217362,1719175839805,-500.0,0.00016438,2]
[330217363,1719175839815,-500.0,0.00016438,2]
[330217364,1719175839824,-500.0,0.00016438,2]
[330217365,1719175839834,-500.0,0.00016438,2]
[330217366,1719175839845,-500.0,0.00016438,2]
[330217367,1719175839855,-511.84843862,0.00016438,2]
[330217368,1719175839866,-500.0,0.00016438,2]
[330217369,1719175839877,-892.39,0.00016438,2]
[330217370,1719175839888,-503.83079557,0.00016438,2]
[330217371,1719175839899,-500.0,0.00016438,2]
[330217372,1719175839918,-500.0,0.00016438,2]
[330217373,1719175839928,-500.0,0.00016438,2]
[330217374,1719175839939,-500.0,0.00016438,2]
[330217375,1719175839949,-1321.83,0.00016438,2]
[330217376,1719175839959,-500.0,0.00016438,2]
[330217377,1719175839969,-500.0,0.00016438,2]
[330217378,1719175839979,-500.0,0.00016438,2]
[330217379,1719175839989,-662.66,0.00016438,2]
[330217380,1719175840000,-500.0,0.00016438,2]
[330217381,1719175840010,-500.0,0.00016438,2]
[330217382,1719175840020,-154.80649189,0.00016438,2]
[330217383,1719175840031,-500.0,0.00016438,2]
[330217384,1719175840041,-500.0,0.00016438,2]
[330217385,1719175840051,-500.0,0.00016438,2]
[330217386,1719175840061,-500.0,0.00016438,2]